[Event "45th FIDE Womens Olympiad 2024"]
[Site "Budapest"]
[Date "2024.09.13"]
[Round "3.188"]
[White "Pena Gonzalez, Clara Isabel"]
[Black "El Barbry, Sarah"]
[Result "1-0"]
[ECO "C04"]
[WhiteElo "1895"]
[BlackElo "1862"]
[Annotator "NA RC"]
[PlyCount "131"]
[EventDate "2024.09.05"]
[EventType "team-tourn"]
[EventCountry "HUN"]
[SourceTitle "playchess.com"]
[Source "ChessBase"]
[SourceQuality "1"]
[WhiteTeam "Venezuela"]
[BlackTeam "Morocco"]
[WhiteTeamCountry "VEN"]
[BlackTeamCountry "FRA"]
[TimeControl "40/5400+30:1800+30"]

1. e4 e6 2. d4 d5 3. Nd2 Nc6 4. Ngf3 Nf6 5. e5 Nd7 6. Bb5 Be7 7. Qe2 Nb4 8. Ba4 c5 9. c3 Nc6 10. O-O O-O 11. dxc5 Nxc5 12. Bc2 Qc7 13. Re1 a5 14. Nb3 b6 15. Nxc5 bxc5 16. Ng5 g6 17. Nxh7 Qxe5 18. Qxe5 Nxe5 19. Nxf8 Bf6 20. f4 Nc4 21. Nxg6 fxg6 22. Bd3 Kf7 23. Bxc4 dxc4 24. Be3 Rb8 25. Re2 Be7 26. Rd1 a4 27. a3 Rb7 28. Red2 Rb6 29. h3 Rb7 30. g4 Rb6 31. Kg2 Bb7+ 32. Kg3 Be4 33. h4 Bd3 34. Rh1 Kg7 35. h5 Kh6 36. hxg6+ Kxg6 37. f5+ Kg7 38. Rh6 Bf6 39. Kf2 exf5 40. g5 Bd8 41. Rxb6 Bxb6 42. Kg3 Bc7+ 43. Bf4 Bd8 44. Rh2 Be7 45. Rh6 Be4 46. Ra6 Bc2 47. Ra7 Kf8 48. g6 Be4 49. Bh6+ Ke8 50. g7 f4+ 51. Kxf4 Bh7 52. Ra8+ Kf7 53. Rf8+ Kg6 54. g8=Q+ Bxg8 55. Rxg8+ Kxh6 56. Ra8 Kg6 57. Rxa4 Bg5+ 58. Ke4 Bc1 59. Rxc4 Kf6 60. Rxc5 Bxb2 61. a4 Ba3 62. Rb5 Ke6 63. a5 Kd6 64. a6 Kc6 65. c4 Bc5 66. Rxc5+ 1-0

[Event "45th FIDE Womens Olympiad 2024"]
[Site "Budapest"]
[Date "2024.09.13"]
[Round "3.189"]
[White "Gomez Barrera, Javiera Belen"]
[Black "Chen, Chi"]
[Result "1-0"]
[ECO "B48"]
[WhiteElo "2123"]
[BlackElo "1746"]
[Annotator "NA RC"]
[PlyCount "41"]
[EventDate "2024.09.05"]
[EventType "team-tourn"]
[EventCountry "HUN"]
[SourceTitle "playchess.com"]
[Source "ChessBase"]
[SourceQuality "1"]
[WhiteTeam "Chile"]
[BlackTeam "Chinese Taipei"]
[WhiteTeamCountry "CHI"]
[BlackTeamCountry "TPE"]
[TimeControl "40/5400+30:1800+30"]

1. e4 c5 2. Nf3 e6 3. d4 cxd4 4. Nxd4 Nc6 5. Nc3 Qc7 6. Be3 a6 7. g4 b5 8. Nxc6 Qxc6 9. Qd2 b4 10. Ne2 Nf6 11. f3 d5 12. g5 Nd7 13. exd5 exd5 14. O-O-O Bb7 15. Nf4 Rc8 16. Bh3 Be7 17. Nxd5 Rd8 18. Nxe7 Kxe7 19. Qxb4+ Ke8 20. Rhe1 Ne5 21. Rxd8+ 1-0

[Event "45th FIDE Womens Olympiad 2024"]
[Site "Budapest"]
[Date "2024.09.13"]
[Round "3.190"]
[White "Shih, Ching-An"]
[Black "Abarca Gonzalez, Damaris"]
[Result "0-1"]
[ECO "D12"]
[WhiteElo "1734"]
[BlackElo "1991"]
[Annotator "NA RC"]
[PlyCount "66"]
[EventDate "2024.09.05"]
[EventType "team-tourn"]
[EventCountry "HUN"]
[SourceTitle "playchess.com"]
[Source "ChessBase"]
[SourceQuality "1"]
[WhiteTeam "Chinese Taipei"]
[BlackTeam "Chile"]
[WhiteTeamCountry "TPE"]
[BlackTeamCountry "CHI"]
[TimeControl "40/5400+30:1800+30"]

1. d4 d5 2. Nf3 c6 3. e3 Nf6 4. c4 Bf5 5. Nc3 e6 6. Be2 Bd6 7. cxd5 exd5 8. O-O O-O 9. b3 h6 10. Bb2 Nbd7 11. Qc1 Re8 12. Ba3 Bc7 13. Na4 Ne4 14. Nc5 Ndxc5 15. dxc5 Ng5 16. Bb2 Nxf3+ 17. Bxf3 Qh4 18. g3 Qg5 19. Bg2 h5 20. f4 Qg6 21. Bd4 h4 22. Kf2 h3 23. Bf3 b6 24. g4 Be4 25. Qd1 Bxf3 26. Qxf3 bxc5 27. f5 Qd6 28. Bxc5 Qxc5 29. Qxh3 Qc2+ 30. Kg1 Rxe3 31. Qh4 Re2 32. Rf2 Rxf2 33. Qxf2 Bb6 0-1

[Event "45th FIDE Womens Olympiad 2024"]
[Site "Budapest"]
[Date "2024.09.13"]
[Round "3.191"]
[White "Morales Flores, Monserrat"]
[Black "Chen, I-Chen"]
[Result "1-0"]
[ECO "B15"]
[WhiteElo "1938"]
[BlackElo "1771"]
[Annotator "NA RC"]
[PlyCount "63"]
[EventDate "2024.09.05"]
[EventType "team-tourn"]
[EventCountry "HUN"]
[SourceTitle "playchess.com"]
[Source "ChessBase"]
[SourceQuality "1"]
[WhiteTeam "Chile"]
[BlackTeam "Chinese Taipei"]
[WhiteTeamCountry "CHI"]
[BlackTeamCountry "TPE"]
[TimeControl "40/5400+30:1800+30"]

1. e4 c6 2. d4 d5 3. Nc3 dxe4 4. Nxe4 Nf6 5. Nxf6+ exf6 6. c3 Bd6 7. Bd3 O-O 8. Ne2 h5 9. Be3 Be6 10. Ng3 Bg4 11. Qd2 h4 12. Nf5 Bxf5 13. Bxf5 Re8 14. O-O Qc7 15. h3 Nd7 16. c4 Rad8 17. Rfe1 Nf8 18. Rad1 Ne6 19. a3 b6 20. b4 Nf4 21. c5 bxc5 22. bxc5 Be5 23. Qc1 Nd5 24. dxe5 Qxe5 25. Bg4 Nxe3 26. Rxe3 Qc7 27. Rde1 Rxe3 28. Qxe3 Qa5 29. Bf5 g6 30. Bg4 Rd5 31. Qe8+ Kg7 32. Re7 1-0

[Event "45th FIDE Womens Olympiad 2024"]
[Site "Budapest"]
[Date "2024.09.13"]
[Round "3.192"]
[White "Tsai, Sophie Yi-Hsuan"]
[Black "Romero Troncoso, Liset Anais"]
[Result "0-1"]
[ECO "C54"]
[WhiteElo "1668"]
[BlackElo "1834"]
[Annotator "NA"]
[PlyCount "104"]
[EventDate "2024.09.05"]
[EventType "team-tourn"]
[EventCountry "HUN"]
[SourceTitle "playchess.com"]
[Source "ChessBase"]
[SourceQuality "1"]
[WhiteTeam "Chinese Taipei"]
[BlackTeam "Chile"]
[WhiteTeamCountry "TPE"]
[BlackTeamCountry "CHI"]
[TimeControl "40/5400+30:1800+30"]

1. e4 e5 2. Nf3 Nc6 3. Bc4 Bc5 4. c3 Nf6 5. d3 d6 6. b4 Bb6 7. Qb3 O-O 8. Bg5 h6 9. Bh4 a5 10. b5 a4 11. Qc2 Na5 12. Qxa4 Nxc4 13. Qxc4 Be6 14. Qb4 Bxa2 15. O-O g5 16. Bg3 Be6 17. Nbd2 Rxa1 18. Rxa1 g4 19. Nh4 Nh5 20. Kh1 Qg5 21. Qb2 Nf4 22. Qc2 h5 23. Nc4 Bxc4 24. dxc4 Ng6 25. Nxg6 fxg6 26. Qc1 Qxc1+ 27. Rxc1 Bxf2 28. Ra1 Be3 29. h3 gxh3 30. gxh3 Kh7 31. Kg2 g5 32. Ra2 Kg6 33. Re2 Bc5 34. Ra2 Bb6 35. Bh2 h4 36. Rc2 Ra8 37. Rb2 Ra3 38. Rc2 Ra4 39. c5 Bxc5 40. c4 Ra3 41. Rc1 Ra2+ 42. Kh1 Kh5 43. Rf1 Bf2 44. Rc1 g4 45. hxg4+ Kxg4 46. c5 Bd4 47. b6 cxb6 48. cxd6 Kh3 49. Bxe5 Bxe5 50. Rd1 Bxd6 51. Rd3+ Bg3 52. Rd1 Re2 0-1

[Event "45th FIDE Womens Olympiad 2024"]
[Site "Budapest"]
[Date "2024.09.13"]
[Round "3.193"]
[White "Feng, Eunice"]
[Black "Lindiawati, Evi"]
[Result "1-0"]
[ECO "B01"]
[WhiteElo "1974"]
[BlackElo "1940"]
[Annotator "NA RC"]
[PlyCount "79"]
[EventDate "2024.09.05"]
[EventType "team-tourn"]
[EventCountry "HUN"]
[SourceTitle "playchess.com"]
[Source "ChessBase"]
[SourceQuality "1"]
[WhiteTeam "Hong Kong, China"]
[BlackTeam "Indonesia"]
[WhiteTeamCountry "HKG"]
[BlackTeamCountry "INA"]
[TimeControl "40/5400+30:1800+30"]

1. e4 d5 2. exd5 Qxd5 3. Nc3 Qd6 4. d4 Nf6 5. Nf3 a6 6. Be2 Nc6 7. h3 Bf5 8. Be3 e6 9. Qd2 Nb4 10. Rc1 Nbd5 11. Nxd5 Nxd5 12. Bg5 Be7 13. Bxe7 Qxe7 14. c4 Nf6 15. O-O O-O 16. Qe3 Rfe8 17. Ne5 Nd7 18. f4 f6 19. Nxd7 Qxd7 20. Bf3 c6 21. h4 Rad8 22. Rcd1 Qe7 23. Rfe1 Qb4 24. b3 Bg6 25. h5 Bf7 26. h6 g6 27. g4 Qa5 28. g5 e5 29. fxe5 fxe5 30. dxe5 Rxd1 31. Bxd1 Be6 32. a4 Bf5 33. Bf3 Kf7 34. Be4 Ke6 35. Bxf5+ gxf5 36. Rd1 Rd8 37. Rd6+ Rxd6 38. exd6+ Kxd6 39. g6 hxg6 40. h7 1-0

[Event "45th FIDE Womens Olympiad 2024"]
[Site "Budapest"]
[Date "2024.09.13"]
[Round "3.194"]
[White "Nugroho, Angel Ruth"]
[Black "Lou, Yuxin"]
[Result "1-0"]
[ECO "D02"]
[WhiteElo "1939"]
[BlackElo "1654"]
[Annotator "NA RC"]
[PlyCount "115"]
[EventDate "2024.09.05"]
[EventType "team-tourn"]
[EventCountry "HUN"]
[SourceTitle "playchess.com"]
[Source "ChessBase"]
[SourceQuality "1"]
[WhiteTeam "Indonesia"]
[BlackTeam "Hong Kong, China"]
[WhiteTeamCountry "INA"]
[BlackTeamCountry "HKG"]
[TimeControl "40/5400+30:1800+30"]

1. d4 d5 2. Nf3 Bf5 3. c3 c5 4. dxc5 e6 5. b4 Nf6 6. e3 a6 7. Bb2 Be7 8. Be2 O-O 9. O-O a5 10. a3 Nbd7 11. Nbd2 Ne4 12. c4 Ndf6 13. Nxe4 Bxe4 14. Bc3 axb4 15. axb4 Rxa1 16. Qxa1 dxc4 17. Bxc4 Bxf3 18. gxf3 Qc7 19. Be2 b6 20. cxb6 Qxb6 21. Qa5 Qc6 22. b5 Qd5 23. Rd1 Qg5+ 24. Kh1 Qh4 25. Be1 Nd5 26. Rd4 Qh5 27. Qd2 Bd6 28. f4 Qh3 29. Kg1 f5 30. Rxd5 Rf6 31. f3 exd5 32. Qxd5+ Kf8 33. Bc4 Rg6+ 34. Bg3 Rxg3+ 35. hxg3 Qxg3+ 36. Kf1 Qh3+ 37. Ke2 Qg2+ 38. Kd1 Qg1+ 39. Kd2 Qf2+ 40. Be2 Bb4+ 41. Kd3 Qe1 42. Qxf5+ Ke7 43. Qe5+ Kf8 44. b6 Qd2+ 45. Kc4 Qxe2+ 46. Kxb4 Qd2+ 47. Kc5 Qc2+ 48. Kd6 Qd3+ 49. Kc6 Qa6 50. Qc5+ Ke8 51. Kc7 Qd3 52. Qe5+ Kf7 53. b7 Qc4+ 54. Kb6 Qb4+ 55. Qb5 Qd6+ 56. Qc6 Qb4+ 57. Kc7 Qa5+ 58. Kc8 1-0

[Event "45th FIDE Womens Olympiad 2024"]
[Site "Budapest"]
[Date "2024.09.13"]
[Round "3.195"]
[White "Leung, Hoi Ting"]
[Black "Yuliana, Evi"]
[Result "0-1"]
[ECO "A45"]
[WhiteElo "1619"]
[BlackElo "1912"]
[Annotator "NA RC"]
[PlyCount "120"]
[EventDate "2024.09.05"]
[EventType "team-tourn"]
[EventCountry "HUN"]
[SourceTitle "playchess.com"]
[Source "ChessBase"]
[SourceQuality "1"]
[WhiteTeam "Hong Kong, China"]
[BlackTeam "Indonesia"]
[WhiteTeamCountry "HKG"]
[BlackTeamCountry "INA"]
[TimeControl "40/5400+30:1800+30"]

1. d4 Nf6 2. Bf4 c5 3. c3 cxd4 4. cxd4 Qb6 5. Qc2 Nc6 6. e3 d6 7. Nc3 g6 8. Nf3 Bg7 9. Bc4 Bg4 10. Be2 O-O 11. O-O Rac8 12. Qb3 Qxb3 13. axb3 a6 14. Rfd1 Bf5 15. Rac1 Nb4 16. Nd2 Bc2 17. Rf1 Bd3 18. Bg3 Bxe2 19. Nxe2 Nd3 20. Rc3 Nxb2 21. Rfc1 Rxc3 22. Rxc3 Nd5 23. Rc2 Nd3 24. Nf3 N3b4 25. Rc1 Nc6 26. Nf4 Nxf4 27. Bxf4 e5 28. Bg3 f5 29. d5 Nb4 30. Rc7 Nxd5 31. Rxb7 Rc8 32. h3 Bf6 33. Bh4 Bxh4 34. Nxh4 Rc7 35. Rb8+ Kf7 36. Nf3 h6 37. Nd2 Ne7 38. Nc4 Ke6 39. Ra8 Rc6 40. Rb8 h5 41. Na5 Rc1+ 42. Kh2 Nc6 43. Nxc6 Rxc6 44. h4 d5 45. Re8+ Kd6 46. b4 d4 47. exd4 exd4 48. Rd8+ Ke5 49. Kg3 Ke4 50. Re8+ Kd3 51. Rd8 Kc3 52. Kf4 d3 53. f3 Kd2 54. Rd5 Re6 55. b5 axb5 56. Rxb5 Ke2 57. Rd5 d2 58. g4 fxg4 59. fxg4 hxg4 60. Kxg4 d1=Q 0-1

[Event "45th FIDE Womens Olympiad 2024"]
[Site "Budapest"]
[Date "2024.09.13"]
[Round "3.196"]
[White "Adeline, Clementia"]
[Black "Liu, Tian Yi"]
[Result "1/2-1/2"]
[ECO "E21"]
[WhiteElo "1550"]
[BlackElo "1607"]
[Annotator "NA"]
[PlyCount "129"]
[EventDate "2024.09.05"]
[EventType "team-tourn"]
[EventCountry "HUN"]
[SourceTitle "playchess.com"]
[Source "ChessBase"]
[SourceQuality "1"]
[WhiteTeam "Indonesia"]
[BlackTeam "Hong Kong, China"]
[WhiteTeamCountry "INA"]
[BlackTeamCountry "HKG"]
[TimeControl "40/5400+30:1800+30"]

1. d4 Nf6 2. c4 e6 3. Nc3 Bb4 4. Nf3 O-O 5. Bg5 c5 6. Rc1 h6 7. Bh4 d6 8. dxc5 Bxc5 9. a3 a5 10. e3 Nbd7 11. Be2 Qe7 12. O-O Rd8 13. Qc2 Nf8 14. Rfd1 Ng6 15. Bg3 Bd7 16. Nd4 Be8 17. Bf3 Ne5 18. Bxe5 dxe5 19. Nb3 Bb6 20. Rxd8 Rxd8 21. Rd1 Rxd1+ 22. Qxd1 Qc7 23. Qd3 Bc6 24. Nd2 Bc5 25. Bxc6 bxc6 26. Nb3 Be7 27. Nc1 Nd7 28. Qd1 Qb7 29. Qb3 Qa6 30. Na4 f6 31. Ne2 Kf7 32. h3 Nc5 33. Nxc5 Bxc5 34. Ng3 f5 35. Qc3 Bd6 36. c5 Bc7 37. b3 Qc8 38. Nf1 Qd7 39. b4 axb4 40. Qxb4 Ke7 41. Qh4+ Kf8 42. Qc4 Qd5 43. Qxd5 exd5 44. Nd2 Ke7 45. Kf1 Kd7 46. Ke2 Kc8 47. Nb3 Kb7 48. f3 Ka6 49. a4 Ba5 50. e4 f4 51. Kd3 Bb4 52. Ke2 g5 53. Kd3 h5 54. Ke2 Bc3 55. Kf1 dxe4 56. fxe4 g4 57. hxg4 hxg4 58. Kf2 Bb4 59. Ke2 Bc3 60. Kf2 Ba5 61. Ke2 Bc3 62. Kf2 Ba5 63. Ke2 Bc3 64. Kf2 Ba5 65. Ke2 1/2-1/2

[Event "45th FIDE Womens Olympiad 2024"]
[Site "Budapest"]
[Date "2024.09.13"]
[Round "3.197"]
[White "Tan, Li Ting"]
[Black "Nahed Galab"]
[Result "1-0"]
[ECO "E71"]
[WhiteElo "2037"]
[BlackElo "1693"]
[Annotator "NA RC"]
[PlyCount "87"]
[EventDate "2024.09.05"]
[EventType "team-tourn"]
[EventCountry "HUN"]
[SourceTitle "playchess.com"]
[Source "ChessBase"]
[SourceQuality "1"]
[WhiteTeam "Malaysia"]
[BlackTeam "Sudan"]
[WhiteTeamCountry "MAS"]
[BlackTeamCountry "SUD"]
[TimeControl "40/5400+30:1800+30"]

1. d4 Nf6 2. c4 g6 3. Nc3 Bg7 4. e4 d6 5. h3 O-O 6. Bg5 e5 7. dxe5 dxe5 8. Qxd8 Rxd8 9. Nd5 Nbd7 10. Nxc7 Rb8 11. Rd1 h6 12. Be3 b6 13. f3 Bb7 14. g4 Nc5 15. Rh2 Rxd1+ 16. Kxd1 Rd8+ 17. Rd2 Rxd2+ 18. Kxd2 Kf8 19. b4 Na6 20. Nxa6 Bxa6 21. b5 Bb7 22. c5 Ke7 23. cxb6 axb6 24. Bxb6 Nd7 25. Be3 Kd6 26. Bc4 f6 27. a4 g5 28. a5 Kc7 29. b6+ Kb8 30. Bb5 Nf8 31. a6 Bxa6 32. Bxa6 Ne6 33. Bc4 Nd4 34. Ne2 Nxf3+ 35. Kc3 Bf8 36. Bd5 Nh4 37. Ng3 Ng2 38. Nf5 Nxe3 39. Nxe3 Bc5 40. Nc4 Kc8 41. Kb3 Be7 42. Ka4 Kb8 43. Kb5 Bf8 44. Ka6 1-0

[Event "45th FIDE Womens Olympiad 2024"]
[Site "Budapest"]
[Date "2024.09.13"]
[Round "3.198"]
[White "Ibtihal Osman"]
[Black "Azhar, Puteri Munajjah Az-Z"]
[Result "0-1"]
[ECO "C50"]
[WhiteElo "1626"]
[BlackElo "2014"]
[Annotator "NA RC"]
[PlyCount "58"]
[EventDate "2024.09.05"]
[EventType "team-tourn"]
[EventCountry "HUN"]
[SourceTitle "playchess.com"]
[Source "ChessBase"]
[SourceQuality "1"]
[WhiteTeam "Sudan"]
[BlackTeam "Malaysia"]
[WhiteTeamCountry "SUD"]
[BlackTeamCountry "MAS"]
[TimeControl "40/5400+30:1800+30"]

1. e4 e5 2. Nf3 Nc6 3. Bc4 Bc5 4. O-O Nf6 5. Nc3 d6 6. h3 Be6 7. Be2 h6 8. d3 Qd7 9. a3 g5 10. Nh2 Nd4 11. Bg4 O-O-O 12. Bxe6 fxe6 13. Ne2 Qf7 14. c3 Nxe2+ 15. Qxe2 Nh5 16. Be3 Nf4 17. Qd1 Bb6 18. g3 Nxh3+ 19. Kg2 g4 20. Qxg4 Nf4+ 21. Bxf4 Rdg8 22. Qe2 exf4 23. d4 Rh7 24. g4 h5 25. f3 e5 26. Rad1 Qf6 27. Qf2 Qg6 28. Qh4 hxg4 29. Qxg4+ Qe6 0-1

[Event "45th FIDE Womens Olympiad 2024"]
[Site "Budapest"]
[Date "2024.09.13"]
[Round "3.199"]
[White "Azhar, Puteri Rifqah Fahada"]
[Black "Sabreen Oraby"]
[Result "1/2-1/2"]
[ECO "A48"]
[WhiteElo "1947"]
[BlackElo "1812"]
[Annotator "NA RC"]
[PlyCount "64"]
[EventDate "2024.09.05"]
[EventType "team-tourn"]
[EventCountry "HUN"]
[SourceTitle "playchess.com"]
[Source "ChessBase"]
[SourceQuality "1"]
[WhiteTeam "Malaysia"]
[BlackTeam "Sudan"]
[WhiteTeamCountry "MAS"]
[BlackTeamCountry "SUD"]
[TimeControl "40/5400+30:1800+30"]

1. d4 g6 2. Nf3 Bg7 3. Bf4 Nf6 4. e3 d6 5. c3 O-O 6. Nbd2 Nc6 7. Bg3 Qe8 8. Qc2 Rb8 9. a4 Nh5 10. Bc4 Nxg3 11. hxg3 e5 12. dxe5 Nxe5 13. Nxe5 Qxe5 14. Nf3 Qe7 15. Nh4 Be6 16. Qb3 Rfe8 17. Nf3 c6 18. Bxe6 Qxe6 19. Qxe6 fxe6 20. O-O-O d5 21. e4 Rbd8 22. Rhe1 Rf8 23. exd5 exd5 24. Re7 Rf7 25. Rde1 Rdf8 26. Kc2 h6 27. Kd3 Rxe7 28. Rxe7 Rf7 29. Re2 Kf8 30. Nh4 g5 31. Nf3 Re7 32. Rxe7 Kxe7 1/2-1/2

[Event "45th FIDE Womens Olympiad 2024"]
[Site "Budapest"]
[Date "2024.09.13"]
[Round "3.200"]
[White "Rawan, Mansor"]
[Black "Nithyalakshmi, Sivanesan"]
[Result "0-1"]
[ECO "A80"]
[WhiteElo "1717"]
[BlackElo "1912"]
[Annotator "NA RC"]
[PlyCount "66"]
[EventDate "2024.09.05"]
[EventType "team-tourn"]
[EventCountry "HUN"]
[SourceTitle "playchess.com"]
[Source "ChessBase"]
[SourceQuality "1"]
[WhiteTeam "Sudan"]
[BlackTeam "Malaysia"]
[WhiteTeamCountry "SUD"]
[BlackTeamCountry "MAS"]
[TimeControl "40/5400+30:1800+30"]

1. d4 e6 2. Bf4 f5 3. Nf3 Nf6 4. h3 b6 5. e3 Bb7 6. Nbd2 Be7 7. Bd3 Ne4 8. Ne5 O-O 9. Nxe4 fxe4 10. Be2 Bg5 11. Bxg5 Qxg5 12. Bg4 Qf6 13. Rf1 b5 14. Be2 a6 15. Qd2 d6 16. Ng4 Qg6 17. Rg1 Nd7 18. c4 bxc4 19. Bxc4 Nb6 20. Bb3 a5 21. Rc1 Rf7 22. Nh2 a4 23. Bd1 Bd5 24. b3 Raf8 25. Qb4 Rxf2 26. Ng4 R2f7 27. bxa4 h5 28. a5 Nc8 29. a6 hxg4 30. Bxg4 Qf6 31. Rc2 Nb6 32. a4 Nc4 33. a7 Qf1+ 0-1

[Event "45th FIDE Womens Olympiad 2024"]
[Site "Budapest"]
[Date "2024.09.13"]
[Round "3.201"]
[White "Haile, Lidet Abate"]
[Black "Nassr, Lina"]
[Result "1/2-1/2"]
[ECO "B41"]
[WhiteElo "1834"]
[BlackElo "2010"]
[Annotator "NA RC"]
[PlyCount "112"]
[EventDate "2024.09.05"]
[EventType "team-tourn"]
[EventCountry "HUN"]
[SourceTitle "playchess.com"]
[Source "ChessBase"]
[SourceQuality "1"]
[WhiteTeam "Ethiopia"]
[BlackTeam "Algeria"]
[WhiteTeamCountry "ETH"]
[BlackTeamCountry "ALG"]
[TimeControl "40/5400+30:1800+30"]

1. e4 c5 2. Nf3 e6 3. d4 cxd4 4. Nxd4 a6 5. Bc4 b5 6. Bd3 Bb7 7. O-O Qc7 8. Nc3 Nf6 9. Qe2 Nc6 10. Nxc6 Qxc6 11. a3 Be7 12. Bd2 O-O 13. f4 d5 14. exd5 Bc5+ 15. Kh1 exd5 16. Rf3 Rfe8 17. Qf1 Qd7 18. Ne2 h5 19. f5 Ng4 20. f6 Qd6 21. Bf4 Qxf6 22. Bg3 Qe7 23. Rf5 Ne3 24. Qf3 d4 25. Qxh5 Nxf5 26. Qxf5 g6 27. Qg4 Be4 28. Nf4 Bxd3 29. cxd3 Bd6 30. Nxg6 Qe6 31. Ne7+ Kh7 32. Qxe6 fxe6 33. Bxd6 Rad8 34. Bc5 Rd7 35. h3 Rexe7 36. Bxe7 Rxe7 37. Rc1 e5 38. Rc6 e4 39. dxe4 Rd7 40. Rc2 Kg6 41. Kg1 Kf6 42. Kf2 Ke5 43. Ke1 Kxe4 44. Rf2 Rg7 45. g4 Rh7 46. Rh2 d3 47. h4 Rc7 48. Kd1 Rf7 49. g5 Rf1+ 50. Kd2 Rb1 51. Kc3 Rc1+ 52. Kb3 Ke3 53. Rh3+ Ke4 54. Rh2 Ke3 55. Rh3+ Ke4 56. Rh2 Ke3 1/2-1/2

[Event "45th FIDE Womens Olympiad 2024"]
[Site "Budapest"]
[Date "2024.09.13"]
[Round "3.202"]
[White "Latreche, Sabrina"]
[Black "Bantiwalu, Aster Melake"]
[Result "0-1"]
[ECO "C56"]
[WhiteElo "2030"]
[BlackElo "1704"]
[Annotator "NA RC"]
[PlyCount "120"]
[EventDate "2024.09.05"]
[EventType "team-tourn"]
[EventCountry "HUN"]
[SourceTitle "playchess.com"]
[Source "ChessBase"]
[SourceQuality "1"]
[WhiteTeam "Algeria"]
[BlackTeam "Ethiopia"]
[WhiteTeamCountry "ALG"]
[BlackTeamCountry "ETH"]
[TimeControl "40/5400+30:1800+30"]

1. e4 e5 2. Nf3 Nc6 3. d4 exd4 4. Bc4 Be7 5. Nxd4 Ne5 6. Bb3 d6 7. f4 Ng6 8. O-O Nf6 9. Nc3 O-O 10. Qe2 c5 11. Nf3 Qb6 12. f5 Ne5 13. Nd5 Nxd5 14. Bxd5 Bd7 15. Nxe5 dxe5 16. Qh5 Bc6 17. Bg5 Bxg5 18. Qxg5 h6 19. Qg3 Bxd5 20. f6 g6 21. exd5 Qxb2 22. c3 b6 23. Qxe5 Rfe8 24. Qf4 Kh7 25. Qf3 Re2 26. Rae1 Rxe1 27. Rxe1 Qxa2 28. Re7 Kg8 29. g4 Rd8 30. d6 Rxd6 31. Re2 Qd5 32. Qxd5 Rxd5 33. Re8+ Kh7 34. Re7 g5 35. Rxf7+ Kg6 36. Rxa7 Kxf6 37. Rb7 Rd6 38. Kf2 Ke5 39. Ke2 Kf4 40. Re7 Kxg4 41. Re3 Kf5 42. Rf3+ Kg6 43. Ke3 g4 44. Rf8 Kg5 45. Ke4 Rd2 46. Rg8+ Kh5 47. Rb8 Rb2 48. c4 Kh4 49. Rh8 h5 50. Kf5 Rf2+ 51. Kg6 Rxh2 52. Rxh5+ Kg3 53. Rd5 Rc2 54. Rd6 Rxc4 55. Rxb6 Kh3 56. Kf5 g3 57. Ke5 g2 58. Kd5 Rc1 59. Rh6+ Kg3 60. Rg6+ Kf3 0-1

[Event "45th FIDE Womens Olympiad 2024"]
[Site "Budapest"]
[Date "2024.09.13"]
[Round "3.203"]
[White "Teshome, Wubrist Bekele"]
[Black "Nassr, Rania"]
[Result "0-1"]
[ECO "B43"]
[WhiteElo "1614"]
[BlackElo "1866"]
[Annotator "NA RC"]
[PlyCount "90"]
[EventDate "2024.09.05"]
[EventType "team-tourn"]
[EventCountry "HUN"]
[SourceTitle "playchess.com"]
[Source "ChessBase"]
[SourceQuality "1"]
[WhiteTeam "Ethiopia"]
[BlackTeam "Algeria"]
[WhiteTeamCountry "ETH"]
[BlackTeamCountry "ALG"]
[TimeControl "40/5400+30:1800+30"]

1. e4 c5 2. Nf3 e6 3. d4 cxd4 4. Nxd4 a6 5. Nc3 b5 6. Qf3 Bb7 7. Bd3 Qc7 8. Be3 g6 9. O-O Bg7 10. a3 Ne7 11. Rad1 Nbc6 12. Nxc6 Qxc6 13. Bd2 O-O 14. Rfe1 Qc7 15. Qh3 d5 16. exd5 Nxd5 17. Nxd5 Bxd5 18. c3 Rad8 19. Bh6 Bb3 20. Bxg7 Kxg7 21. Rc1 Rd5 22. Re4 Qd6 23. Be2 Rd8 24. Qf3 Rd2 25. Rf4 Qc7 26. Rb1 Rxe2 27. Rxf7+ Qxf7 28. Qxe2 Qf4 29. g3 Qf5 30. Re1 Bc4 31. Qe3 Rd7 32. Qb6 Rf7 33. Qd4+ Qf6 34. Qxf6+ Kxf6 35. f4 Rd7 36. Rb1 Ba2 37. Ra1 Bb3 38. Re1 Rd2 39. Re5 Rxb2 40. Rc5 Ra2 41. g4 Bd5 42. Rc7 Rg2+ 43. Kf1 Rxg4 44. Rxh7 Rxf4+ 45. Ke2 Ra4 0-1

[Event "45th FIDE Womens Olympiad 2024"]
[Site "Budapest"]
[Date "2024.09.13"]
[Round "3.204"]
[White "Djerroud, Chahrazed"]
[Black "Teweldemedhn, Mekdes Teklay"]
[Result "1-0"]
[ECO "B38"]
[WhiteElo "1910"]
[BlackElo "1648"]
[Annotator "NA RC"]
[PlyCount "67"]
[EventDate "2024.09.05"]
[EventType "team-tourn"]
[EventCountry "HUN"]
[SourceTitle "playchess.com"]
[Source "ChessBase"]
[SourceQuality "1"]
[WhiteTeam "Algeria"]
[BlackTeam "Ethiopia"]
[WhiteTeamCountry "ALG"]
[BlackTeamCountry "ETH"]
[TimeControl "40/5400+30:1800+30"]

1. e4 c5 2. Nf3 Nc6 3. d4 cxd4 4. Nxd4 g6 5. c4 Bg7 6. Be3 Qb6 7. Nxc6 Qxc6 8. Qc2 e6 9. Nc3 Ne7 10. Rd1 b6 11. Be2 Bb7 12. Bf3 Qxc4 13. Qd3 Bxc3+ 14. bxc3 Qxd3 15. Rxd3 d5 16. exd5 Bxd5 17. Bd4 Rg8 18. Bxd5 Nxd5 19. g3 Ke7 20. Ke2 f6 21. f4 Rac8 22. h4 Kd6 23. Bxf6 Rc4 24. Kd2 Kc6 25. Be5 Ra4 26. Ra1 h6 27. Kc2 g5 28. fxg5 hxg5 29. h5 Rf8 30. h6 Re4 31. Bg7 Rf2+ 32. Rd2 Ree2 33. Rad1 Ne3+ 34. Kd3 1-0

[Event "45th FIDE Womens Olympiad 2024"]
[Site "Budapest"]
[Date "2024.09.13"]
[Round "3.205"]
[White "Ptacnikova, Lenka"]
[Black "Vilhete, Vania Fausto Da T."]
[Result "1-0"]
[ECO "D34"]
[WhiteElo "2065"]
[BlackElo "1877"]
[Annotator "NA RC"]
[PlyCount "115"]
[EventDate "2024.09.05"]
[EventType "team-tourn"]
[EventCountry "HUN"]
[SourceTitle "playchess.com"]
[Source "ChessBase"]
[SourceQuality "1"]
[WhiteTeam "Iceland"]
[BlackTeam "Mozambique"]
[WhiteTeamCountry "ISL"]
[BlackTeamCountry "MOZ"]
[TimeControl "40/5400+30:1800+30"]

1. d4 d5 2. Nf3 e6 3. g3 Nf6 4. Bg2 Be7 5. O-O c5 6. c4 Nc6 7. cxd5 exd5 8. dxc5 Bxc5 9. Bg5 Be7 10. Nc3 O-O 11. Bxf6 Bxf6 12. Qxd5 Qxd5 13. Nxd5 Bxb2 14. Rab1 Ba3 15. Nd2 Rb8 16. Rb3 Bd6 17. Ne4 Rd8 18. Nxd6 Rxd6 19. Rd3 Kf8 20. Rfd1 Be6 21. Nf4 Rxd3 22. Nxe6+ fxe6 23. Rxd3 Ke7 24. Ra3 Ra8 25. Rb3 Nd8 26. Bxb7 Rb8 27. Bd5 Rxb3 28. Bxb3 Nc6 29. f4 Kd6 30. Kf2 e5 31. Ke3 Ne7 32. Ke4 Ng6 33. Bg8 exf4 34. gxf4 h6 35. Bb3 Ne7 36. e3 Nc6 37. Kf5 Ne7+ 38. Ke4 Nc6 39. Kd3 Ne7 40. e4 Kc5 41. e5 g6 42. Ke4 Kc6 43. Bf7 Kd7 44. Bc4 Nf5 45. Bf1 Ke7 46. Bh3 Ng7 47. Bg4 Ne6 48. Bxe6 Kxe6 49. h3 a6 50. a3 a5 51. a4 h5 52. h4 Kf7 53. Kd5 Ke7 54. e6 Ke8 55. Kd6 Kd8 56. e7+ Ke8 57. Ke6 g5 58. f5 1-0